fUSD/lending_fUSD_20250923
["ID","MTS","AMOUNT","RATE_DAILY","PERIOD"]
[387237209,1758664278239,-400.0,0.00024931,3]
[387237210,1758664278249,-400.0,0.00024931,3]
[387237211,1758664278258,-400.0,0.00024931,3]
[387237212,1758664278267,-400.0,0.00024931,3]
[387237213,1758664278276,-1910.92,0.00024931,3]
[387237214,1758664278286,-400.0,0.00024931,3]
[387237215,1758664278295,-2031.07,0.00024931,3]
[387237216,1758664278304,-2495.95,0.00024931,3]
[387237217,1758664278314,-784.22,0.00024931,3]
[387237218,1758664278322,-400.0,0.00024931,3]
[387237219,1758664278332,-791.36,0.00024931,3]
[387237220,1758664278341,-4896.65,0.00024931,3]
[387237221,1758664278351,-1175.49,0.00024931,3]
[387237222,1758664278360,-2758.07,0.00024931,3]
[387237223,1758664278374,-400.0,0.00024931,3]
[387237224,1758664278383,-298.81725964,0.00024931,3]
[387237225,1758664278392,-559.88,0.00024931,3]
[387237226,1758664278401,-626.61,0.00024931,3]
[387237227,1758664278411,-976.72,0.00024931,3]
[387237228,1758664278420,-1207.96,0.00024931,3]
[387237229,1758664278429,-400.0,0.00024931,3]
[387237230,1758664278441,-400.0,0.00024931,3]
[387237231,1758664278451,-400.0,0.00024931,3]
[387237232,1758664278461,-1595.32,0.00024931,3]
[387237233,1758664278470,-1205.82,0.00024931,3]
[387237234,1758664278479,-1169.14,0.00024931,3]
[387237235,1758664278489,-1890.53,0.00024931,3]
[387237236,1758664278499,-1001.970278,0.00024931,7]
[387237237,1758664278508,-1001.970278,0.00024931,7]
[387237238,1758664278518,-400.0,0.00024931,3]
[387237239,1758664278527,-1001.970278,0.00024931,7]
[387237240,1758664278537,-1001.970278,0.00024931,7]
[387237241,1758664278546,-1049.38,0.00024931,3]
[387237242,1758664278555,-400.0,0.00024931,3]
[387237243,1758664278564,-4079.21,0.00024931,3]
[387237244,1758664278573,-1001.970278,0.00024931,7]
[387237245,1758664278583,-685.44,0.00024931,3]
[387237246,1758664278592,-400.0,0.00024931,3]
[387237247,1758664278601,-1001.970278,0.00024931,7]
[387237248,1758664278611,-2510.3,0.00024931,3]
[387237249,1758664278620,-1001.970278,0.00024931,7]
[387237250,1758664278629,-1678.52,0.00024931,3]
[387237251,1758664278639,-1001.970287,0.00024931,7]
[387237252,1758664278648,-16706.02,0.00024931,3]
[387237253,1758664278657,-4251.49,0.00024931,3]
[387237254,1758664278667,-400.0,0.00024931,3]
[387237255,1758664278676,-2074.52,0.00024931,3]
[387237256,1758664278685,-400.0,0.00024931,3]
[387237257,1758664278695,-400.0,0.00024931,3]
[387237258,1758664278704,-400.0,0.00024931,3]
[387237259,1758664278713,-400.0,0.00024931,3]
[387237260,1758664278723,-400.0,0.00024931,3]
[387237261,1758664278731,-689.28,0.00024931,3]
[387237262,1758664278741,-400.0,0.00024931,3]
[387237263,1758664278750,-720.98,0.00024931,3]
[387237264,1758664278759,-400.0,0.00024931,3]
[387237265,1758664278768,-400.0,0.00024931,3]
[387237266,1758664278778,-151.0,0.00024931,7]
[387237267,1758664278787,-236.564627,0.00024931,7]
[387237268,1758664278796,-425.15,0.00024931,3]
[387237269,1758664278805,-168.141365,0.00024931,7]
[387237270,1758664278814,-3330.98,0.00024931,3]
[387237271,1758664278823,-151.0,0.00024931,7]
[387237272,1758664278833,-13418.14,0.00024931,3]
[387237273,1758664278842,-236.564627,0.00024931,7]
[387237274,1758664278852,-168.141365,0.00024931,7]
[387237275,1758664278861,-487.18,0.00024931,3]
[387237276,1758664278870,-605.39,0.00024931,3]
[387237277,1758664278880,-400.0,0.00024931,3]
[387237278,1758664278889,-168.141365,0.00024931,7]
[387237279,1758664278899,-630.04,0.00024931,3]
[387237280,1758664278909,-2046.35,0.00024931,3]
[387237281,1758664278918,-425.07,0.00024931,3]
[387237282,1758664278927,-236.564627,0.00024931,7]
[387237283,1758664278937,-168.141365,0.00024931,7]
[387237284,1758664278947,-236.564627,0.00024931,7]
[387237285,1758664278957,-1822.56,0.00024931,3]
[387237286,1758664278966,-507.22,0.00024931,3]
[387237287,1758664278975,-472.22,0.00024931,3]
[387237288,1758664278985,-168.141365,0.00024931,7]
[387237289,1758664278994,-236.564627,0.00024931,7]
[387237290,1758664279004,-168.141365,0.00024931,7]
[387237291,1758664279013,-1189.77,0.00024931,3]
[387237292,1758664279022,-236.564627,0.00024931,7]
[387237293,1758664279032,-300.94482065,0.00024931,3]
[387237294,1758664279041,-908.29,0.00024931,3]
[387237295,1758664279051,-400.0,0.00024931,3]
[387237296,1758664279061,-752.17,0.00024931,3]
[387237297,1758664279070,-400.0,0.00024931,3]
[387237298,1758664279080,-168.141365,0.00024931,7]
[387237299,1758664279089,-236.564627,0.00024931,7]
[387237300,1758664279098,-168.141369,0.00024931,7]
[387237301,1758664279107,-236.564631,0.00024931,7]
[387237302,1758664279117,-2819.02,0.00024931,3]
[387237303,1758664279126,-151.0,0.00024931,7]
[387237304,1758664279136,-151.0,0.00024931,7]
[387237305,1758664279145,-400.0,0.00024931,3]
[387237306,1758664279155,-151.0,0.00024931,7]
[387237307,1758664279165,-151.0,0.00024931,7]
[387237308,1758664279175,-400.0,0.00024931,3]
[387237309,1758664279184,-400.0,0.00024931,3]
[387237310,1758664279194,-151.0,0.00024931,7]
[387237311,1758664279203,-151.0,0.00024931,7]
[387237312,1758664279213,-269.816212,0.00024931,7]
[387237313,1758664279222,-2102.44,0.00024931,3]
[387237314,1758664279231,-269.816212,0.00024931,7]
[387237315,1758664279241,-7047.04,0.00024931,3]
[387237316,1758664279250,-624.12,0.00024931,3]
[387237317,1758664279260,-1073.44,0.00024931,3]
[387237318,1758664279269,-151.0,0.00024931,7]
[387237319,1758664279404,-1532.57,0.00024931,3]
[387237320,1758664279414,-400.0,0.00024931,3]
[387237321,1758664279424,-151.0,0.00024931,7]
[387237322,1758664279434,-269.816212,0.00024931,7]
[387237323,1758664279443,-458.03,0.00024931,3]
[387237324,1758664279453,-269.816212,0.00024931,7]
[387237325,1758664279462,-524.59,0.00024931,3]
[387237326,1758664279471,-151.0,0.00024931,7]
[387237327,1758664279481,-151.0,0.00024931,7]
[387237328,1758664279490,-400.0,0.00024931,3]
[387237329,1758664279500,-169.0,0.00024932,7]
[387237330,1758664279510,-150.0,0.00024944,2]
[387237331,1758664279519,-500.0,0.00024949,3]
[387237332,1758664279528,-500.0,0.00024955,3]
[387237333,1758664279538,-500.0,0.00024955,3]
[387237334,1758664279547,-2081.852997,0.00024955,7]
[387237335,1758664279557,-2081.852997,0.00024955,7]
[387237336,1758664279567,-263.23311,0.00024955,7]
[387237337,1758664279576,-2081.852997,0.00024955,7]
[387237338,1758664279585,-263.23311,0.00024955,7]
[387237339,1758664279594,-2081.852988,0.00024955,7]
[387237340,1758664279604,-263.23311,0.00024955,7]
[387237341,1758664279614,-263.233118,0.00024955,7]
[387237342,1758664279623,-151.0,0.00024955,7]
[387237343,1758664279632,-152.039803,0.00024955,7]
[387237344,1758664279642,-152.039803,0.00024955,7]
[387237345,1758664279651,-152.039803,0.00024955,7]
[387237346,1758664279660,-152.039811,0.00024955,7]
[387237347,1758664279670,-500.0,0.00024955,3]
[387237348,1758664279679,-5837.31,0.00024955,2]
[387237349,1758664279688,-5837.31,0.00024955,2]
[387237350,1758664279698,-5837.31,0.00024955,2]
[387237351,1758664279708,-5837.31,0.00024955,2]
[387237352,1758664279717,-5837.53,0.00024955,2]
[387237353,1758664279726,-3191.0394815,0.00024956,2]
[387237354,1758664279736,-4374.1619769,0.00024956,2]
[387237355,1758664279746,-151.0,0.00024956,7]
[387237356,1758664279757,-151.0,0.00024956,7]
[387237357,1758664279767,-151.0,0.00024956,7]
[387237358,1758664279777,-178.197237,0.00024956,7]
[387237359,1758664279786,-178.197237,0.00024956,7]
[387237360,1758664279795,-151.0,0.00024956,7]
[387237361,1758664279805,-178.197237,0.00024956,7]
[387237362,1758664279814,-178.197229,0.00024956,7]
[387237363,1758664279824,-152.284734,0.00024956,7]
[387237364,1758664279833,-152.284734,0.00024956,7]
[387237365,1758664279843,-152.284734,0.00024956,7]
[387237366,1758664279853,-152.284731,0.00024956,7]
[387237367,1758664279862,-195.296497,0.00024956,7]
[387237368,1758664279872,-446.059442,0.00024956,7]
[387237369,1758664279882,-151.0,0.00024956,7]
[387237370,1758664279892,-446.059442,0.00024956,7]
[387237371,1758664279902,-446.059442,0.00024956,7]
[387237372,1758664279911,-237.871945,0.00024956,7]
[387237373,1758664279921,-446.05945,0.00024956,7]
[387237374,1758664279930,-237.871945,0.00024956,7]
[387237375,1758664279939,-237.871945,0.00024956,7]
[387237376,1758664279949,-237.871937,0.00024956,7]
[387237377,1758664279959,-2719.606076,0.00024956,7]
[387237378,1758664279969,-2719.606076,0.00024956,7]
[387237379,1758664279978,-2719.606076,0.00024956,7]
[387237380,1758664279989,-2719.606084,0.00024956,7]
[387237381,1758664279998,-151.0,0.00024956,7]
[387237382,1758664280008,-274.505074,0.00024956,7]
[387237383,1758664280017,-151.0,0.00024956,7]
[387237384,1758664280026,-151.0,0.00024956,7]
[387237385,1758664280036,-151.0,0.00024956,7]
[387237386,1758664280046,-173.192744,0.00024956,7]
[387237387,1758664280055,-519.740166,0.00024956,7]
[387237388,1758664280064,-519.740166,0.00024956,7]
[387237389,1758664280074,-519.740166,0.00024956,7]
[387237390,1758664280083,-519.740174,0.00024956,7]
[387237391,1758664280093,-151.0,0.00024956,7]
[387237392,1758664280103,-151.0,0.00024956,7]
[387237393,1758664280112,-151.0,0.00024956,7]
[387237394,1758664280121,-151.0,0.00024956,7]
[387237395,1758664280131,-408.296535,0.00024956,7]
[387237396,1758664280141,-408.296535,0.00024956,7]
[387237397,1758664280151,-408.296544,0.00024956,7]
[387237398,1758664280160,-391.996383,0.00024956,7]
[387237399,1758664280170,-391.996383,0.00024956,7]
[387237400,1758664280180,-391.996383,0.00024956,7]
[387237401,1758664280190,-391.996378,0.00024956,7]
[387237402,1758664280200,-151.0,0.00024956,7]
[387237403,1758664280210,-333.226514,0.00024956,7]
[387237404,1758664280219,-333.226514,0.00024956,7]
[387237405,1758664280229,-333.226514,0.00024956,7]
[387237406,1758664280238,-333.226522,0.00024956,7]
[387237407,1758664280248,-419.6,0.00024959,3]
[387237408,1758664280258,-308.79600614,0.00024959,3]
[387237409,1758664280267,-150.0,0.00024967,2]
[387237410,1758664280277,-500.0,0.00024973,2]
[387237411,1758664280287,-500.0,0.00024973,2]
[387237412,1758664280296,-500.0,0.00024973,2]
[387237413,1758664280306,-500.0,0.00024973,2]
[387237414,1758664280315,-500.0,0.00024973,2]
[387237415,1758664280325,-500.0,0.00024973,2]
[387237416,1758664280334,-500.0,0.00024973,2]
[387237417,1758664280343,-500.0,0.00024973,2]
[387237418,1758664280354,-500.0,0.00024973,2]
[387237419,1758664280366,-500.0,0.00024973,2]
[387237420,1758664280376,-500.0,0.00024973,2]
[387237421,1758664280386,-260.87916832,0.00024973,2]
[387237422,1758664280396,-500.0,0.00024973,2]
[387237423,1758664280406,-500.0,0.00024973,2]
[387237424,1758664280416,-500.0,0.00024973,2]
[387237425,1758664280425,-500.0,0.00024973,2]
[387237426,1758664280435,-500.0,0.00024973,2]
[387237427,1758664280445,-500.0,0.00024973,2]
[387237428,1758664280455,-500.0,0.00024973,2]
[387237429,1758664280465,-411.61250507,0.00024973,2]
[387237430,1758664280475,-555.91621823,0.00024973,2]
[387237431,1758664280484,-500.0,0.00024973,2]
[387237432,1758664280494,-500.0,0.00024973,2]
[387237433,1758664280503,-500.0,0.00024973,2]
[387237434,1758664280513,-500.0,0.00024973,2]
[387237435,1758664280522,-500.0,0.00024973,2]
[387237436,1758664280531,-500.0,0.00024973,2]
[387237437,1758664280541,-500.0,0.00024973,2]
[387237438,1758664280550,-500.0,0.00024973,2]
[387237439,1758664280560,-500.0,0.00024973,2]
[387237440,1758664280570,-500.0,0.00024973,2]
[387237441,1758664280579,-158.22870706,0.00024973,2]
[387237442,1758664280589,-500.0,0.00024973,2]
[387237443,1758664280598,-500.0,0.00024973,2]
[387237444,1758664280608,-500.0,0.00024973,2]
[387237445,1758664280618,-500.0,0.00024973,2]
[387237446,1758664280627,-200.0,0.00024973,2]
[387237447,1758664280637,-500.0,0.00024973,2]
[387237448,1758664280647,-500.0,0.00024973,2]
[387237449,1758664280657,-500.18802203,0.00024973,2]
[387237450,1758664280666,-500.0,0.00024973,2]
[387237451,1758664280676,-500.0,0.00024973,2]
[387237452,1758664280686,-500.0,0.00024973,2]
[387237453,1758664280695,-278.5774177,0.00024987,2]
[387237454,1758664280705,-169.0,0.00025,7]
[387237455,1758664280715,-10749.32326101,0.00025,2]
[387237456,1758664280724,-192.34665349,0.00025001,2]
[387237457,1758664280734,-168.0,0.00025007,2]
[387237458,1758664280743,-150.0,0.0002501,2]
[387237459,1758664280753,-200.0,0.0002501,2]
[387237460,1758664280762,-150.0,0.0002501,2]
[387237461,1758664280772,-500.0,0.0002501,2]
[387237462,1758664280781,-150.0,0.0002501,2]
[387237463,1758664280791,-150.0,0.0002501,2]
[387237464,1758664280800,-150.0,0.0002501,2]
[387237465,1758664280810,-150.0,0.0002501,2]
[387237466,1758664280819,-500.0,0.0002501,2]
[387237467,1758664280829,-150.0,0.0002501,2]
[387237468,1758664280838,-500.0,0.0002501,2]
[387237469,1758664280848,-150.0,0.0002501,2]
[387237470,1758664280858,-150.0,0.0002501,2]
[387237471,1758664280867,-500.0,0.0002501,2]
[387237472,1758664280877,-500.0,0.0002501,2]
[387237473,1758664280886,-150.0,0.0002501,2]
[387237474,1758664280897,-150.0,0.0002501,2]
[387237475,1758664280906,-500.0,0.0002501,2]
[387237476,1758664280916,-150.0,0.0002501,2]
[387237477,1758664280925,-500.0,0.0002501,2]
[387237478,1758664280935,-500.0,0.0002501,2]
[387237479,1758664280944,-500.0,0.0002501,2]
[387237480,1758664280955,-150.0,0.0002501,2]
[387237481,1758664280965,-1233.0,0.0002501,2]
[387237482,1758664280974,-500.0,0.0002501,2]
[387237483,1758664280983,-150.0,0.0002501,2]
[387237484,1758664280993,-258.0114094,0.0002501,2]
[387237485,1758664281002,-500.0,0.0002501,2]
[387237486,1758664281011,-500.0,0.0002501,2]
[387237487,1758664281020,-150.0,0.0002501,2]
[387237488,1758664281030,-500.0,0.0002501,2]
[387237489,1758664281039,-500.0,0.0002501,2]
[387237490,1758664281049,-150.0,0.0002501,2]
[387237491,1758664281058,-434.0,0.0002501,2]
[387237492,1758664281068,-150.0,0.0002501,2]
[387237493,1758664281077,-150.0,0.0002501,2]
[387237494,1758664281087,-150.0,0.0002501,2]
[387237495,1758664281096,-150.0,0.0002501,2]
[387237496,1758664281105,-500.0,0.0002501,2]
[387237497,1758664281115,-150.0,0.0002501,2]
[387237498,1758664281124,-500.0,0.0002501,2]
[387237499,1758664281134,-150.0,0.0002501,2]
[387237500,1758664281143,-679.0,0.0002501,2]
[387237501,1758664281152,-1062.55697924,0.00025024,2]
[387237502,1758664281161,-150.0,0.0002503,2]
[387237503,1758664281170,-168.0,0.00025043,2]
[387237504,1758664281179,-208.0,0.00025059,2]
[387237505,1758664281189,-851.0,0.0002507,2]
[387237506,1758664281198,-400.0,0.00025073,3]
[387237507,1758664281207,-168.0,0.00025103,2]
[387237508,1758664281217,-1545.40600196,0.00025105,2]
[387237509,1758664281226,-211.0,0.00025109,2]
[387237510,1758664281235,-1000.0,0.00025121,2]
[387237511,1758664281245,-1425.0,0.00025182,2]
[387237512,1758664281254,-168.0,0.00025183,2]
[387237513,1758664281263,-1425.0,0.00025192,2]
[387237514,1758664281273,-500.0,0.00025194,3]
[387237515,1758664281283,-500.0,0.00025194,3]
[387237516,1758664281294,-673.13955284,0.00025195,2]
[387237517,1758664281306,-178.52,0.00025199,2]
[387237518,1758664281316,-500.0,0.00025203,3]
[387237519,1758664281326,-809.64,0.00025204,3]
[387237520,1758664281335,-809.64,0.00025204,3]
[387237521,1758664281345,-809.64,0.00025204,3]
[387237522,1758664281355,-809.64,0.00025204,3]
[387237523,1758664281370,-300.0,0.00025204,10]
[387237524,1758664281382,-300.0,0.00025204,10]
[387237525,1758664281392,-500.0,0.00025204,3]
[387237526,1758664281402,-500.0,0.00025204,3]
[387237527,1758664281411,-500.0,0.00025204,3]
[387237528,1758664281420,-500.0,0.00025204,3]
[387237529,1758664281430,-500.0,0.00025204,3]
[387237530,1758664281439,-500.0,0.00025204,3]
[387237531,1758664281449,-500.0,0.00025204,3]
[387237532,1758664281458,-9062.39362085,0.00025205,2]
[387237533,1758664281467,-400.0,0.00025205,3]
[387237534,1758664281476,-400.0,0.00025205,3]
[387237535,1758664281485,-400.0,0.00025205,3]
[387237536,1758664281494,-422.15,0.00025205,3]
[387237537,1758664281503,-400.0,0.00025205,3]
[387237538,1758664281845,-400.0,0.00025205,3]
[387237539,1758664281856,-400.0,0.00025205,3]
[387237540,1758664281867,-400.0,0.00025205,3]
[387237541,1758664281876,-400.0,0.00025205,3]
[387237542,1758664281886,-400.0,0.00025205,3]
[387237543,1758664281895,-722.3,0.00025205,3]
[387237544,1758664281904,-400.0,0.00025205,3]
[387237545,1758664281914,-425.13,0.00025205,3]
[387237546,1758664281923,-400.0,0.00025205,3]
[387237547,1758664281932,-463.61,0.00025205,3]
[387237548,1758664281942,-400.0,0.00025205,3]
[387237549,1758664281951,-400.0,0.00025205,3]
[387237550,1758664281960,-400.0,0.00025205,3]
[387237551,1758664281969,-400.81,0.00025205,3]
[387237552,1758664281978,-606.67,0.00025205,3]
[387237553,1758664281989,-400.0,0.00025205,3]
[387237554,1758664281998,-400.0,0.00025205,3]
[387237555,1758664282008,-400.0,0.00025205,3]
[387237556,1758664282019,-558.51,0.00025205,3]
[387237557,1758664282031,-400.0,0.00025205,3]
[387237558,1758664282043,-274.9977498,0.00025205,3]
[387237559,1758664282053,-400.0,0.00025205,3]
[387237560,1758664282062,-517.79,0.00025205,3]
[387237561,1758664282072,-410.1,0.00025205,3]
[387237562,1758664282082,-400.0,0.00025205,3]
[387237563,1758664282092,-400.0,0.00025205,3]
[387237564,1758664282101,-513.24,0.00025205,3]
[387237565,1758664282110,-864.38,0.00025205,3]
[387237566,1758664282119,-400.0,0.00025205,3]
[387237567,1758664282128,-400.0,0.00025205,3]
[387237568,1758664282138,-400.0,0.00025205,3]
[387237569,1758664282148,-400.0,0.00025205,3]
[387237570,1758664282157,-400.0,0.00025205,3]
[387237571,1758664282166,-400.0,0.00025205,3]
[387237572,1758664282175,-400.0,0.00025205,3]
[387237573,1758664282185,-1113.94,0.00025205,3]
[387237574,1758664282194,-1113.94,0.00025205,3]
[387237575,1758664282203,-400.0,0.00025205,3]
[387237576,1758664282213,-499.32,0.00025205,3]
[387237577,1758664282222,-400.0,0.00025205,3]
[387237578,1758664282231,-400.0,0.00025205,3]
[387237579,1758664282241,-400.0,0.00025205,3]
[387237580,1758664282250,-400.0,0.00025205,3]
[387237581,1758664282259,-400.0,0.00025205,3]
[387237582,1758664282268,-400.0,0.00025205,3]
[387237583,1758664282278,-701.54,0.00025205,3]
[387237584,1758664282287,-448.15,0.00025205,3]
[387237585,1758664282297,-527.27,0.00025205,3]
[387237586,1758664282306,-400.0,0.00025205,3]
[387237587,1758664282315,-550.8,0.00025205,3]
[387237588,1758664282325,-400.0,0.00025205,3]
[387237589,1758664282336,-400.0,0.00025205,3]
[387237590,1758664282346,-400.0,0.00025205,3]
[387237591,1758664282357,-433.43,0.00025205,3]
[387237592,1758664282372,-400.0,0.00025205,3]
[387237593,1758664282382,-1431.46,0.00025205,3]
[387237594,1758664282392,-400.0,0.00025205,3]
[387237595,1758664282402,-888.36,0.00025205,3]
[387237596,1758664282413,-400.0,0.00025205,3]
[387237597,1758664282422,-400.0,0.00025205,3]
[387237598,1758664282432,-500.78,0.00025205,3]
[387237599,1758664282444,-400.0,0.00025205,3]
[387237600,1758664282453,-400.0,0.00025205,3]
[387237601,1758664282463,-415.37,0.00025205,3]
[387237602,1758664282472,-432.65,0.00025205,3]
[387237603,1758664282482,-400.0,0.00025205,3]
[387237604,1758664282492,-851.65,0.00025205,3]
[387237605,1758664282502,-449.67,0.00025205,3]
[387237606,1758664282512,-514.2,0.00025205,3]
[387237607,1758664282521,-696.09,0.00025205,3]
[387237608,1758664282531,-400.0,0.00025205,3]
[387237609,1758664282541,-942.3,0.00025205,3]
[387237610,1758664282551,-401.11,0.00025205,3]
[387237611,1758664282560,-409.1,0.00025205,3]
[387237612,1758664282570,-400.0,0.00025205,3]
[387237613,1758664282580,-400.0,0.00025205,3]
[387237614,1758664282589,-400.0,0.00025205,3]
[387237615,1758664282599,-483.66,0.00025205,3]
[387237616,1758664282610,-700.73,0.00025205,3]
[387237617,1758664282619,-1218.15,0.00025205,3]
[387237618,1758664282629,-432.38,0.00025205,3]
[387237619,1758664282639,-400.0,0.00025205,3]
[387237620,1758664282649,-400.0,0.00025205,3]
[387237621,1758664282658,-400.0,0.00025205,3]
[387237622,1758664282668,-413.32,0.00025205,3]
[387237623,1758664282678,-600.39,0.00025205,3]
[387237624,1758664282687,-400.0,0.00025205,3]
[387237625,1758664282697,-400.0,0.00025205,3]
[387237626,1758664282707,-525.79,0.00025205,3]
[387237627,1758664282716,-400.0,0.00025205,3]
[387237628,1758664282725,-400.0,0.00025205,3]
[387237629,1758664282735,-585.89,0.00025205,3]
[387237630,1758664282745,-400.0,0.00025205,3]
[387237631,1758664282754,-400.0,0.00025205,3]
[387237632,1758664282764,-1162.35,0.00025205,3]
[387237633,1758664282773,-869.19,0.00025205,3]
[387237634,1758664282782,-683.96,0.00025205,3]
[387237635,1758664282792,-400.0,0.00025205,3]
[387237636,1758664282801,-853.3,0.00025205,3]
[387237637,1758664282811,-400.0,0.00025205,3]
[387237638,1758664282821,-400.0,0.00025205,3]
[387237639,1758664282830,-408.40461842,0.00025205,3]
[387237640,1758664282839,-684.3,0.00025205,3]
[387237641,1758664282849,-400.0,0.00025205,3]
[387237642,1758664282858,-400.0,0.00025205,3]
[387237643,1758664282867,-400.0,0.00025205,3]
[387237644,1758664282877,-400.0,0.00025205,3]
[387237645,1758664282886,-400.0,0.00025205,3]
[387237646,1758664282896,-349.62231696,0.00025205,3]
[387237647,1758664282906,-400.0,0.00025205,3]
[387237648,1758664282916,-714.46,0.00025205,3]
[387237649,1758664282927,-400.0,0.00025205,3]
[387237650,1758664282937,-684.69,0.00025205,3]
[387237651,1758664282947,-684.69,0.00025205,3]
[387237652,1758664282956,-400.0,0.00025205,3]
[387237653,1758664282965,-400.0,0.00025205,3]
[387237654,1758664282975,-433.77,0.00025205,3]
[387237655,1758664282984,-400.0,0.00025205,3]
[387237656,1758664282993,-400.0,0.00025205,3]
[387237657,1758664283003,-413.44752097,0.00025205,3]
[387237658,1758664283012,-400.0,0.00025205,3]
[387237659,1758664283023,-451.05,0.00025205,3]
[387237660,1758664283033,-1130.1,0.00025205,3]
[387237661,1758664283044,-400.0,0.00025205,3]
[387237662,1758664283053,-452.64993118,0.00025205,3]
[387237663,1758664283062,-273.69004551,0.00025205,3]
[387237664,1758664283071,-1034.82,0.00025205,3]
[387237665,1758664283081,-414.11,0.00025205,3]
[387237666,1758664283090,-400.0,0.00025205,3]
[387237667,1758664283099,-400.0,0.00025205,3]
[387237668,1758664283109,-400.0,0.00025205,3]
[387237669,1758664283118,-400.0,0.00025205,3]
[387237670,1758664283127,-568.34,0.00025205,3]
[387237671,1758664283136,-400.0,0.00025205,3]
[387237672,1758664283146,-497.27,0.00025205,3]
[387237673,1758664283155,-400.0,0.00025205,3]
[387237674,1758664283165,-483.14,0.00025205,3]
[387237675,1758664283174,-189.80086154,0.00025205,3]
[387237676,1758664283184,-400.0,0.00025205,3]
[387237677,1758664283193,-400.0,0.00025205,3]
[387237678,1758664283204,-400.0,0.00025205,3]
[387237679,1758664283214,-400.0,0.00025205,3]
[387237680,1758664283224,-963.02,0.00025205,3]
[387237681,1758664283234,-442.92,0.00025205,3]
[387237682,1758664283244,-400.0,0.00025205,3]
[387237683,1758664283253,-400.0,0.00025205,3]
[387237684,1758664283263,-400.0,0.00025205,3]
[387237685,1758664283272,-400.0,0.00025205,3]
[387237686,1758664283281,-400.0,0.00025205,3]
[387237687,1758664283291,-419.2,0.00025205,3]
[387237688,1758664283300,-400.0,0.00025205,3]
[387237689,1758664283310,-400.0,0.00025205,3]
[387237690,1758664283319,-1113.1,0.00025205,3]
[387237691,1758664283328,-564.87,0.00025205,3]
[387237692,1758664283337,-400.0,0.00025205,3]
[387237693,1758664283346,-400.0,0.00025205,3]
[387237694,1758664283356,-400.0,0.00025205,3]
[387237695,1758664283367,-442.1,0.00025205,3]
[387237696,1758664283376,-612.62,0.00025205,3]
[387237697,1758664283385,-400.0,0.00025205,3]
[387237698,1758664283395,-544.44,0.00025205,3]
[387237699,1758664283404,-553.48,0.00025205,3]
[387237700,1758664283414,-400.0,0.00025205,3]
[387237701,1758664283423,-811.92,0.00025205,3]
[387237702,1758664283432,-400.0,0.00025205,3]
[387237703,1758664283442,-400.0,0.00025205,3]
[387237704,1758664283451,-866.52,0.00025205,3]
[387237705,1758664283460,-446.23934318,0.00025205,3]
[387237706,1758664283470,-400.0,0.00025205,3]
[387237707,1758664283479,-400.0,0.00025205,3]
[387237708,1758664283489,-151.0,0.00025205,7]